[Event "Live Chess"]
[Site "Chess.com"]
[Date "2024.06.02"]
[Round "-"]
[White "McCarthyStone"]
[Black "lateforthesky"]
[Result "1-0"]
[WhiteElo "2487"]
[BlackElo "2068"]
[TimeControl "300"]
[EndTime "6:28:38 PDT"]
[Termination "McCarthyStone won by resignation"]

1. b3 {[%clk 0:04:54.4]} 1... e5 {[%clk 0:04:56.7]} 2. Bb2 {[%clk 0:04:54.3]}
2... d6 {[%clk 0:04:55.3]} 3. e3 {[%clk 0:04:53.3]} 3... Nc6 {[%clk 0:04:53.4]}
4. Ne2 {[%clk 0:04:49.4]} 4... Nf6 {[%clk 0:04:49.5]} 5. d4 {[%clk 0:04:48.5]}
5... exd4 {[%clk 0:04:47.2]} 6. Nxd4 {[%clk 0:04:48.4]} 6... Bd7 {[%clk
0:04:45.3]} 7. Nc3 {[%clk 0:04:47.4]} 7... Nxd4 {[%clk 0:04:28.6]} 8. Qxd4
{[%clk 0:04:47.3]} 8... Be7 {[%clk 0:04:24.8]} 9. O-O-O {[%clk 0:04:45.7]} 9...
Bc6 {[%clk 0:04:20.8]} 10. f3 {[%clk 0:04:43]} 10... Qd7 {[%clk 0:04:15.2]} 11.
h4 {[%clk 0:04:39.4]} 11... O-O-O {[%clk 0:04:09.7]} 12. Qxa7 {[%clk 0:04:37.9]}
12... Qe6 {[%clk 0:03:58.9]} 13. e4 {[%clk 0:04:27.6]} 13... Kd7 {[%clk
0:03:39]} 14. g4 {[%clk 0:04:22.1]} 14... Ke8 {[%clk 0:03:37.1]} 15. Bc4 {[%clk
0:04:17.2]} 15... d5 {[%clk 0:03:24]} 16. exd5 {[%clk 0:04:13.2]} 16... Nxd5
{[%clk 0:03:17.5]} 17. Nxd5 {[%clk 0:04:05.9]} 17... Bxd5 {[%clk 0:03:15.1]} 18.
Rhe1 {[%clk 0:04:00]} 18... Qc6 {[%clk 0:03:11.9]} 19. Bxd5 {[%clk 0:03:52.3]}
19... Rxd5 {[%clk 0:03:10]} 20. Qa8+ {[%clk 0:03:41.2]} 1-0

[Event "Live Chess"]
[Site "Chess.com"]
[Date "2024.06.02"]
[Round "-"]
[White "agamilewska"]
[Black "Eva3337"]
[Result "1/2-1/2"]
[WhiteElo "1771"]
[BlackElo "1178"]
[TimeControl "300"]
[EndTime "6:29:04 PDT"]
[Termination "Game drawn by repetition"]

1. d4 {[%clk 0:04:56.8]} 1... Nc6 {[%clk 0:04:57.2]} 2. c4 {[%clk 0:04:55.8]}
2... d5 {[%clk 0:04:54.2]} 3. Nf3 {[%clk 0:04:50.1]} 3... e6 {[%clk 0:04:52]} 4.
e3 {[%clk 0:04:46.5]} 4... Nf6 {[%clk 0:04:48.7]} 5. Nc3 {[%clk 0:04:45.2]} 5...
Bb4 {[%clk 0:04:43.4]} 6. cxd5 {[%clk 0:04:44]} 6... Qxd5 {[%clk 0:04:39.9]} 7.
Bd2 {[%clk 0:04:42.6]} 7... Qd8 {[%clk 0:04:32.2]} 8. Bb5 {[%clk 0:04:40.8]}
8... Bd7 {[%clk 0:04:29]} 9. Bxc6 {[%clk 0:04:38.6]} 9... Bxc6 {[%clk
0:04:27.5]} 10. O-O {[%clk 0:04:38.5]} 10... Bxc3 {[%clk 0:04:18]} 11. Bxc3
{[%clk 0:04:37]} 11... Ne4 {[%clk 0:04:17.2]} 12. Ne5 {[%clk 0:04:34.9]} 12...
Nxc3 {[%clk 0:04:14.3]} 13. bxc3 {[%clk 0:04:24]} 13... Qd5 {[%clk 0:04:10.8]}
14. Nxc6 {[%clk 0:04:22.2]} 14... Qxc6 {[%clk 0:04:09]} 15. Qb3 {[%clk
0:04:18.9]} 15... O-O {[%clk 0:04:04.9]} 16. Rab1 {[%clk 0:04:18.2]} 16... b6
{[%clk 0:04:01]} 17. c4 {[%clk 0:04:17.4]} 17... Qe4 {[%clk 0:03:54.4]} 18. Rfc1
{[%clk 0:04:13.2]} 18... h6 {[%clk 0:03:51.2]} 19. d5 {[%clk 0:04:12]} 19...
Rfd8 {[%clk 0:03:38.3]} 20. dxe6 {[%clk 0:04:06.6]} 20... Qxe6 {[%clk
0:03:35.1]} 21. h3 {[%clk 0:04:04.3]} 21... Rd2 {[%clk 0:03:31.6]} 22. c5 {[%clk
0:03:58.5]} 22... Rad8 {[%clk 0:03:22.4]} 23. Qxe6 {[%clk 0:03:54.4]} 23... fxe6
{[%clk 0:03:20.4]} 24. cxb6 {[%clk 0:03:53.5]} 24... cxb6 {[%clk 0:03:14.1]} 25.
a4 {[%clk 0:03:42.7]} 25... Ra2 {[%clk 0:03:11]} 26. Rb4 {[%clk 0:03:35.5]}
26... Rdd2 {[%clk 0:03:08.6]} 27. Rf1 {[%clk 0:03:34.9]} 27... Kf7 {[%clk
0:03:04.6]} 28. Rf4+ {[%clk 0:03:30.2]} 28... Ke7 {[%clk 0:03:01.3]} 29. Rc1
{[%clk 0:03:29.3]} 29... Rdc2 {[%clk 0:02:54.8]} 30. Rxc2 {[%clk 0:03:19.3]}
30... Rxc2 {[%clk 0:02:52.6]} 31. Rd4 {[%clk 0:03:15.7]} 31... Ra2 {[%clk
0:02:50.1]} 32. g4 {[%clk 0:03:14.5]} 32... g5 {[%clk 0:02:46.9]} 33. Kg2 {[%clk
0:03:13.4]} 33... e5 {[%clk 0:02:40]} 34. Rc4 {[%clk 0:03:10.9]} 34... Kd6
{[%clk 0:02:35.6]} 35. Kf3 {[%clk 0:03:10]} 35... Kd5 {[%clk 0:02:31]} 36. Rb4
{[%clk 0:02:44.5]} 36... Kc5 {[%clk 0:02:21.7]} 37. Rb5+ {[%clk 0:02:43.1]}
37... Kd6 {[%clk 0:02:17.9]} 38. Rb4 {[%clk 0:02:30.8]} 38... Kc5 {[%clk
0:02:13]} 39. Rb5+ {[%clk 0:02:24]} 39... Kd6 {[%clk 0:02:11]} 40. Rb4 {[%clk
0:01:48.3]} 40... Kc5 {[%clk 0:01:54.2]} 1/2-1/2

[Event "Live Chess"]
[Site "Chess.com"]
[Date "2024.06.02"]
[Round "-"]
[White "Anareza_Firouzja"]
[Black "gobbles19"]
[Result "1/2-1/2"]
[WhiteElo "1884"]
[BlackElo "2218"]
[TimeControl "300"]
[EndTime "6:29:15 PDT"]
[Termination "Game drawn by stalemate"]

1. e4 {[%clk 0:04:58]} 1... Nf6 {[%clk 0:04:57.4]} 2. Nc3 {[%clk 0:04:55.2]}
2... d6 {[%clk 0:04:55.7]} 3. d4 {[%clk 0:04:53.4]} 3... g6 {[%clk 0:04:55.1]}
4. f4 {[%clk 0:04:53]} 4... Bg7 {[%clk 0:04:54.5]} 5. Qd2 {[%clk 0:04:52.5]}
5... c6 {[%clk 0:04:46.7]} 6. Nf3 {[%clk 0:04:49.2]} 6... b5 {[%clk 0:04:45.3]}
7. e5 {[%clk 0:04:46.7]} 7... b4 {[%clk 0:04:40.6]} 8. exf6 {[%clk 0:04:32.4]}
8... bxc3 {[%clk 0:04:38.1]} 9. bxc3 {[%clk 0:04:32.3]} 9... Bxf6 {[%clk
0:04:35.9]} 10. Bd3 {[%clk 0:04:22.9]} 10... Nd7 {[%clk 0:04:28.9]} 11. O-O
{[%clk 0:04:17.4]} 11... Nb6 {[%clk 0:04:25.1]} 12. a4 {[%clk 0:04:03.8]} 12...
a5 {[%clk 0:04:20.9]} 13. Ba3 {[%clk 0:03:55.4]} 13... Ba6 {[%clk 0:04:17.4]}
14. Bxa6 {[%clk 0:03:47.6]} 14... Rxa6 {[%clk 0:04:17.3]} 15. Rfe1 {[%clk
0:03:40.8]} 15... O-O {[%clk 0:04:13.6]} 16. Qd3 {[%clk 0:02:57.2]} 16... Ra8
{[%clk 0:04:09.2]} 17. c4 {[%clk 0:02:42.1]} 17... Bg7 {[%clk 0:03:58.8]} 18. c3
{[%clk 0:02:40.4]} 18... Qd7 {[%clk 0:03:46.2]} 19. Rab1 {[%clk 0:02:33.2]}
19... Rfb8 {[%clk 0:03:35.9]} 20. Re2 {[%clk 0:02:20.5]} 20... Nxa4 {[%clk
0:03:27.5]} 21. Rbe1 {[%clk 0:02:12.4]} 21... e6 {[%clk 0:03:21.8]} 22. d5
{[%clk 0:02:05.3]} 22... cxd5 {[%clk 0:03:18.3]} 23. cxd5 {[%clk 0:02:03.8]}
23... Nc5 {[%clk 0:03:15.9]} 24. Qe3 {[%clk 0:01:54.3]} 24... exd5 {[%clk
0:03:08.9]} 25. Bxc5 {[%clk 0:01:49.8]} 25... dxc5 {[%clk 0:03:08]} 26. Qxc5
{[%clk 0:01:49.1]} 26... Rc8 {[%clk 0:03:03.4]} 27. Qb6 {[%clk 0:01:31.8]} 27...
Bxc3 {[%clk 0:02:57.9]} 28. Re7 {[%clk 0:01:27.9]} 28... Qc6 {[%clk 0:02:46.7]}
29. Re8+ {[%clk 0:01:19.1]} 29... Kg7 {[%clk 0:02:44.7]} 30. Qxc6 {[%clk
0:01:13.8]} 30... Rxc6 {[%clk 0:02:41.5]} 31. Rxa8 {[%clk 0:01:13.2]} 31... Bxe1
{[%clk 0:02:40.5]} 32. Nxe1 {[%clk 0:01:12.4]} 32... Rc4 {[%clk 0:02:29.9]} 33.
Rxa5 {[%clk 0:01:09.4]} 33... Rxf4 {[%clk 0:02:28.6]} 34. Rxd5 {[%clk
0:01:08.9]} 34... h5 {[%clk 0:02:27.4]} 35. Nf3 {[%clk 0:01:06.1]} 35... Ra4
{[%clk 0:02:26.2]} 36. h4 {[%clk 0:01:04.1]} 36... Rb4 {[%clk 0:02:23.2]} 37.
Kh2 {[%clk 0:01:03.2]} 37... Ra4 {[%clk 0:02:22.4]} 38. Kg3 {[%clk 0:01:02.6]}
38... Rb4 {[%clk 0:02:21.7]} 39. Kh3 {[%clk 0:01:01.8]} 39... Ra4 {[%clk
0:02:21.1]} 40. Rc5 {[%clk 0:01:01.1]} 40... Rg4 {[%clk 0:02:19.2]} 41. Ra5
{[%clk 0:00:58]} 41... Rb4 {[%clk 0:02:17.4]} 42. Ra7 {[%clk 0:00:57.4]} 42...
Rb3 {[%clk 0:02:16.4]} 43. Kg3 {[%clk 0:00:53]} 43... Rc3 {[%clk 0:02:15.3]} 44.
Kf2 {[%clk 0:00:51.7]} 44... Rc2+ {[%clk 0:02:14.5]} 45. Kg3 {[%clk 0:00:51.3]}
45... Rc3 {[%clk 0:02:13.8]} 46. Kh2 {[%clk 0:00:51.2]} 46... Rc4 {[%clk
0:02:10.7]} 47. Rb7 {[%clk 0:00:49.5]} 47... Ra4 {[%clk 0:02:07.1]} 48. g3
{[%clk 0:00:43]} 48... Ra5 {[%clk 0:02:01]} 49. Ng5 {[%clk 0:00:40.2]} 49...
Ra2+ {[%clk 0:01:58.2]} 50. Kh3 {[%clk 0:00:38.8]} 50... Rf2 {[%clk 0:01:57.4]}
51. Rc7 {[%clk 0:00:36.1]} 51... Rf5 {[%clk 0:01:56]} 52. Rd7 {[%clk 0:00:32.1]}
52... Rf1 {[%clk 0:01:54.2]} 53. Ne6+ {[%clk 0:00:30.4]} 53... Kf6 {[%clk
0:01:50.8]} 54. Ng5 {[%clk 0:00:30.3]} 54... Kg7 {[%clk 0:01:50]} 55. Kg2 {[%clk
0:00:29.2]} 55... Rf6 {[%clk 0:01:48.6]} 56. Rxf7+ {[%clk 0:00:24.7]} 56... Rxf7
{[%clk 0:01:47.5]} 57. Nxf7 {[%clk 0:00:24.5]} 57... Kxf7 {[%clk 0:01:47.4]} 58.
Kf3 {[%clk 0:00:23.6]} 58... Kf6 {[%clk 0:01:45]} 59. g4 {[%clk 0:00:23]} 59...
Ke5 {[%clk 0:01:43]} 60. gxh5 {[%clk 0:00:21.6]} 60... gxh5 {[%clk 0:01:42.1]}
61. Kg2 {[%clk 0:00:21.5]} 61... Kf4 {[%clk 0:01:41.1]} 62. Kh1 {[%clk
0:00:21.4]} 62... Kg3 {[%clk 0:01:40.5]} 63. Kg1 {[%clk 0:00:20.4]} 63... Kxh4
{[%clk 0:01:40.4]} 64. Kh1 {[%clk 0:00:20.3]} 64... Kh3 {[%clk 0:01:39.8]} 65.
Kg1 {[%clk 0:00:20.2]} 65... Kg3 {[%clk 0:01:39.4]} 66. Kh1 {[%clk 0:00:20.1]}
66... h4 {[%clk 0:01:39]} 67. Kg1 {[%clk 0:00:20]} 67... h3 {[%clk 0:01:38.8]}
68. Kh1 {[%clk 0:00:19.9]} 68... h2 {[%clk 0:01:38.7]} 1/2-1/2

[Event "Live Chess"]
[Site "Chess.com"]
[Date "2024.06.02"]
[Round "-"]
[White "LL220284LL"]
[Black "ACM42"]
[Result "1-0"]
[WhiteElo "2479"]
[BlackElo "2206"]
[TimeControl "300"]
[EndTime "6:29:17 PDT"]
[Termination "LL220284LL won by resignation"]

1. e3 {[%clk 0:04:57.2]} 1... c5 {[%clk 0:04:58.1]} 2. b3 {[%clk 0:04:53.6]}
2... Nc6 {[%clk 0:04:55.2]} 3. Bb2 {[%clk 0:04:49.7]} 3... e5 {[%clk 0:04:54.2]}
4. d3 {[%clk 0:04:47.2]} 4... d5 {[%clk 0:04:52.9]} 5. g3 {[%clk 0:04:46.3]}
5... Nf6 {[%clk 0:04:52]} 6. Bg2 {[%clk 0:04:45.8]} 6... Be6 {[%clk 0:04:50.9]}
7. Nf3 {[%clk 0:04:45.3]} 7... Bd6 {[%clk 0:04:49.6]} 8. O-O {[%clk 0:04:44.1]}
8... O-O {[%clk 0:04:48.8]} 9. Nbd2 {[%clk 0:04:41.3]} 9... Qc7 {[%clk
0:04:46.4]} 10. c4 {[%clk 0:04:37.4]} 10... d4 {[%clk 0:04:43.8]} 11. exd4
{[%clk 0:04:30.6]} 11... exd4 {[%clk 0:04:42.1]} 12. Ng5 {[%clk 0:04:25.7]}
12... Bg4 {[%clk 0:04:36.5]} 13. Qb1 {[%clk 0:04:23.3]} 13... h6 {[%clk
0:04:34.9]} 14. Nge4 {[%clk 0:04:21.2]} 14... Nxe4 {[%clk 0:04:23.7]} 15. Nxe4
{[%clk 0:04:21.1]} 15... Ne5 {[%clk 0:04:23]} 16. Nxd6 {[%clk 0:04:13.6]} 16...
Qxd6 {[%clk 0:04:19.9]} 17. f4 {[%clk 0:04:12.6]} 17... Nc6 {[%clk 0:04:16.9]}
18. Qc2 {[%clk 0:04:07.9]} 18... Rae8 {[%clk 0:04:14.8]} 19. Rae1 {[%clk
0:04:04.6]} 19... b6 {[%clk 0:04:12.6]} 20. a3 {[%clk 0:04:02.3]} 20... Bf5
{[%clk 0:04:10.1]} 21. Bc1 {[%clk 0:03:58.1]} 21... Qg6 {[%clk 0:04:02.7]} 22.
Be4 {[%clk 0:03:50.5]} 22... Nb8 {[%clk 0:03:53.8]} 23. Qg2 {[%clk 0:03:45.3]}
23... Nd7 {[%clk 0:03:44.1]} 24. Re2 {[%clk 0:03:11.8]} 24... Nf6 {[%clk
0:02:56.8]} 25. Rfe1 {[%clk 0:03:07.1]} 25... Nxe4 {[%clk 0:02:51.4]} 26. dxe4
{[%clk 0:03:05.3]} 26... Bg4 {[%clk 0:02:49.2]} 27. f5 {[%clk 0:02:59.4]} 27...
Qc6 {[%clk 0:02:43.6]} 28. Rf2 {[%clk 0:02:55.3]} 28... f6 {[%clk 0:02:22.9]}
29. Bf4 {[%clk 0:02:43.6]} 29... Bh5 {[%clk 0:02:14.5]} 30. g4 {[%clk
0:02:40.1]} 30... Bf7 {[%clk 0:02:12.9]} 31. e5 {[%clk 0:02:37.6]} 31... fxe5
{[%clk 0:02:07.5]} 32. Qxc6 {[%clk 0:02:36]} 1-0

[Event "Live Chess"]
[Site "Chess.com"]
[Date "2024.06.02"]
[Round "-"]
[White "MagnersCarlsberg2870"]
[Black "TigerTank70"]
[Result "1-0"]
[WhiteElo "1769"]
[BlackElo "2181"]
[TimeControl "300"]
[EndTime "6:30:11 PDT"]
[Termination "MagnersCarlsberg2870 won by resignation"]

1. d4 {[%clk 0:04:57.8]} 1... d5 {[%clk 0:04:58.5]} 2. e3 {[%clk 0:04:56.6]}
2... c5 {[%clk 0:04:56.6]} 3. Bd3 {[%clk 0:04:55]} 3... e6 {[%clk 0:04:55.9]} 4.
c3 {[%clk 0:04:54]} 4... Nf6 {[%clk 0:04:55.2]} 5. f4 {[%clk 0:04:53]} 5... Nc6
{[%clk 0:04:54.3]} 6. Nd2 {[%clk 0:04:52]} 6... c4 {[%clk 0:04:53.5]} 7. Bc2
{[%clk 0:04:50.8]} 7... Nd7 {[%clk 0:04:47.8]} 8. Ngf3 {[%clk 0:04:49.8]} 8...
Be7 {[%clk 0:04:46.9]} 9. Qe2 {[%clk 0:04:47.5]} 9... Bh4+ {[%clk 0:04:45.2]}
10. g3 {[%clk 0:04:46.4]} 10... Bf6 {[%clk 0:04:43.2]} 11. O-O {[%clk
0:04:44.4]} 11... h5 {[%clk 0:04:41.6]} 12. e4 {[%clk 0:04:42.3]} 12... dxe4
{[%clk 0:04:23.7]} 13. Nxe4 {[%clk 0:04:40.8]} 13... Qc7 {[%clk 0:04:16]} 14. f5
{[%clk 0:04:32.3]} 14... Nb6 {[%clk 0:03:59.4]} 15. Bf4 {[%clk 0:04:22.6]} 15...
e5 {[%clk 0:03:54.7]} 16. dxe5 {[%clk 0:04:20.7]} 16... Nxe5 {[%clk 0:03:49.1]}
17. Nxe5 {[%clk 0:04:12.9]} 17... Bxe5 {[%clk 0:03:48]} 18. Bxe5 {[%clk
0:04:12.1]} 1-0

[Event "Live Chess"]
[Site "Chess.com"]
[Date "2024.06.02"]
[Round "-"]
[White "seasidecastle27"]
[Black "NeilDruggan73"]
[Result "1-0"]
[WhiteElo "1945"]
[BlackElo "1705"]
[TimeControl "300"]
[EndTime "6:30:14 PDT"]
[Termination "seasidecastle27 won by resignation"]

1. d4 {[%clk 0:04:56.4]} 1... Nf6 {[%clk 0:04:57.7]} 2. Nf3 {[%clk 0:04:55.5]}
2... g6 {[%clk 0:04:54.8]} 3. Bg5 {[%clk 0:04:53.6]} 3... Bg7 {[%clk 0:04:54]}
4. Nbd2 {[%clk 0:04:52.6]} 4... d5 {[%clk 0:04:52]} 5. e3 {[%clk 0:04:51.5]}
5... c6 {[%clk 0:04:49.1]} 6. Be2 {[%clk 0:04:45.4]} 6... Bg4 {[%clk 0:04:48]}
7. Ne5 {[%clk 0:04:44.1]} 7... Bxe2 {[%clk 0:04:45.8]} 8. Qxe2 {[%clk 0:04:43]}
8... Nbd7 {[%clk 0:04:45.3]} 9. h4 {[%clk 0:04:40.3]} 9... h6 {[%clk 0:04:42.5]}
10. Bf4 {[%clk 0:04:37.4]} 10... Ne4 {[%clk 0:04:38.9]} 11. Nxe4 {[%clk
0:04:32.8]} 11... dxe4 {[%clk 0:04:36.7]} 12. O-O-O {[%clk 0:04:30.9]} 12... O-O
{[%clk 0:04:31]} 13. g4 {[%clk 0:04:21.1]} 13... Nxe5 {[%clk 0:04:21.4]} 14.
dxe5 {[%clk 0:04:17.9]} 14... Qa5 {[%clk 0:04:20.9]} 15. Kb1 {[%clk 0:04:10.7]}
15... Rad8 {[%clk 0:03:48.9]} 16. Qc4 {[%clk 0:04:01.6]} 16... Rxd1+ {[%clk
0:03:39.4]} 17. Rxd1 {[%clk 0:03:59.6]} 17... Rd8 {[%clk 0:03:38.3]} 18. Rxd8+
{[%clk 0:03:54.6]} 18... Qxd8 {[%clk 0:03:36.9]} 19. a4 {[%clk 0:03:48.1]} 19...
Qd5 {[%clk 0:03:29.3]} 20. Qxd5 {[%clk 0:03:42.8]} 20... cxd5 {[%clk 0:03:27.4]}
21. b4 {[%clk 0:03:37.5]} 21... e6 {[%clk 0:03:26.5]} 22. Kb2 {[%clk 0:03:32]}
22... Bf8 {[%clk 0:03:24.4]} 23. Kb3 {[%clk 0:03:30.8]} 23... b6 {[%clk
0:03:19.9]} 24. c4 {[%clk 0:03:27.9]} 24... Be7 {[%clk 0:03:14.6]} 25. cxd5
{[%clk 0:03:19.3]} 25... exd5 {[%clk 0:03:11.5]} 26. b5 {[%clk 0:03:13.1]} 26...
Bxh4 {[%clk 0:03:05.9]} 27. e6 {[%clk 0:03:08.1]} 27... fxe6 {[%clk 0:03:02.8]}
28. Bb8 {[%clk 0:03:03.3]} 28... Bxf2 {[%clk 0:03:01.5]} 29. Bxa7 {[%clk
0:03:02.2]} 29... Bxe3 {[%clk 0:03:00.4]} 30. a5 {[%clk 0:03:01.2]} 30... h5
{[%clk 0:02:42.3]} 31. gxh5 {[%clk 0:02:59.2]} 31... gxh5 {[%clk 0:02:37.4]} 32.
Bxb6 {[%clk 0:02:58.3]} 32... Bxb6 {[%clk 0:01:35.3]} 33. axb6 {[%clk
0:02:55.5]} 33... e3 {[%clk 0:01:34.2]} 34. Kc2 {[%clk 0:02:52.4]} 34... h4
{[%clk 0:01:25.9]} 35. b7 {[%clk 0:02:50]} 35... h3 {[%clk 0:01:25.5]} 36. b8=Q+
{[%clk 0:02:48.3]} 36... Kg7 {[%clk 0:01:24.1]} 37. Qg3+ {[%clk 0:02:46.8]} 1-0

[Event "Live Chess"]
[Site "Chess.com"]
[Date "2024.06.02"]
[Round "-"]
[White "Queensandpawns"]
[Black "juniortay"]
[Result "1-0"]
[WhiteElo "2291"]
[BlackElo "2333"]
[TimeControl "300"]
[EndTime "6:30:21 PDT"]
[Termination "Queensandpawns won on time"]

1. e4 {[%clk 0:04:59.3]} 1... e5 {[%clk 0:04:59]} 2. d4 {[%clk 0:04:58.4]} 2...
Nc6 {[%clk 0:04:57.8]} 3. c3 {[%clk 0:04:58.3]} 3... Nf6 {[%clk 0:04:56.6]} 4.
dxe5 {[%clk 0:04:56.4]} 4... Nxe5 {[%clk 0:04:55.2]} 5. Nd2 {[%clk 0:04:56]}
5... Bc5 {[%clk 0:04:52.9]} 6. Ngf3 {[%clk 0:04:54]} 6... Qe7 {[%clk 0:04:49.1]}
7. Nxe5 {[%clk 0:04:51]} 7... Qxe5 {[%clk 0:04:47.6]} 8. Bd3 {[%clk 0:04:50.9]}
8... d6 {[%clk 0:04:45.1]} 9. O-O {[%clk 0:04:48.6]} 9... O-O {[%clk 0:04:43.7]}
10. Nf3 {[%clk 0:04:46.7]} 10... Qh5 {[%clk 0:04:42.6]} 11. Nd4 {[%clk
0:04:44.4]} 11... Bg4 {[%clk 0:04:37.8]} 12. f3 {[%clk 0:04:42.1]} 12... Bd7
{[%clk 0:04:36.7]} 13. Kh1 {[%clk 0:04:41]} 13... Rae8 {[%clk 0:04:34.2]} 14.
Ne2 {[%clk 0:04:36.5]} 14... Qh4 {[%clk 0:04:20.5]} 15. Bf4 {[%clk 0:04:32.6]}
15... Nh5 {[%clk 0:04:17.1]} 16. Qd2 {[%clk 0:04:30.9]} 16... h6 {[%clk
0:04:13.6]} 17. a4 {[%clk 0:04:23.3]} 17... a5 {[%clk 0:04:10.8]} 18. Be3 {[%clk
0:04:09.2]} 18... Bxe3 {[%clk 0:04:03.2]} 19. Qxe3 {[%clk 0:04:09.1]} 19... f5
{[%clk 0:04:02.8]} 20. Qd4 {[%clk 0:03:57.3]} 20... f4 {[%clk 0:03:56.1]} 21.
Qf2 {[%clk 0:03:50.8]} 21... Qg5 {[%clk 0:03:48.5]} 22. Bc4+ {[%clk 0:03:44.6]}
22... Be6 {[%clk 0:03:46.3]} 23. Bxe6+ {[%clk 0:03:42.2]} 23... Rxe6 {[%clk
0:03:46.2]} 24. Nd4 {[%clk 0:03:41.3]} 24... Rg6 {[%clk 0:03:40.1]} 25. Nf5
{[%clk 0:03:37.6]} 25... Rgf6 {[%clk 0:03:13.2]} 26. h4 {[%clk 0:03:19.1]} 26...
Ng3+ {[%clk 0:03:10.2]} 27. Kg1 {[%clk 0:03:13.9]} 27... Qh5 {[%clk 0:02:58.9]}
28. Nxg3 {[%clk 0:03:12.1]} 28... fxg3 {[%clk 0:02:57.4]} 29. Qxg3 {[%clk
0:03:12]} 29... Rf4 {[%clk 0:02:51.5]} 30. Rad1 {[%clk 0:02:50]} 30... Rxh4
{[%clk 0:02:48.5]} 31. Rd5 {[%clk 0:02:48.7]} 31... Rh1+ {[%clk 0:02:41.5]} 32.
Kf2 {[%clk 0:02:48.1]} 32... Rxf1+ {[%clk 0:02:39]} 33. Kxf1 {[%clk 0:02:48]}
33... Qh1+ {[%clk 0:02:38.1]} 34. Ke2 {[%clk 0:02:47]} 34... Qa1 {[%clk
0:02:30.5]} 35. Rb5 {[%clk 0:02:32.5]} 35... b6 {[%clk 0:02:23.9]} 36. Qg4
{[%clk 0:02:10.9]} 36... Qxa4 {[%clk 0:02:17.9]} 37. Qe6+ {[%clk 0:02:09]} 37...
Kh8 {[%clk 0:02:15.6]} 38. Rh5 {[%clk 0:02:02.7]} 38... Qc2+ {[%clk 0:02:03.5]}
39. Kf1 {[%clk 0:02:00.8]} 39... Qc1+ {[%clk 0:01:55.3]} 40. Kf2 {[%clk
0:01:53.9]} 40... Qxb2+ {[%clk 0:01:53.9]} 41. Kg1 {[%clk 0:01:53]} 41... Qc1+
{[%clk 0:01:51.7]} 42. Kh2 {[%clk 0:01:51.5]} 42... Kh7 {[%clk 0:01:46.2]} 43.
Rf5 {[%clk 0:01:50.3]} 43... Rg8 {[%clk 0:01:27.4]} 44. f4 {[%clk 0:01:39.8]}
44... Qxc3 {[%clk 0:01:21.1]} 45. Rh5 {[%clk 0:01:12.1]} 45... Qf6 {[%clk
0:01:18.4]} 46. Qg4 {[%clk 0:01:06.3]} 46... Rf8 {[%clk 0:01:06.9]} 47. Rf5
{[%clk 0:00:55.8]} 47... Qe7 {[%clk 0:01:03.8]} 48. Rxf8 {[%clk 0:00:49.1]}
48... Qxf8 {[%clk 0:01:02.3]} 49. f5 {[%clk 0:00:49]} 49... Qf6 {[%clk
0:01:00.9]} 50. Qh5 {[%clk 0:00:45.5]} 50... a4 {[%clk 0:00:56.3]} 51. Qd1
{[%clk 0:00:44]} 51... a3 {[%clk 0:00:53.8]} 52. Qb3 {[%clk 0:00:43.6]} 52...
Qe5+ {[%clk 0:00:47.4]} 53. Kh3 {[%clk 0:00:43.1]} 53... Qxe4 {[%clk 0:00:44.6]}
54. Qf7 {[%clk 0:00:38]} 54... Qe3+ {[%clk 0:00:40.1]} 55. g3 {[%clk 0:00:35.3]}
55... Qg5 {[%clk 0:00:38.6]} 56. Qb3 {[%clk 0:00:24.9]} 56... Qxf5+ {[%clk
0:00:37]} 57. g4 {[%clk 0:00:24.8]} 57... Qf1+ {[%clk 0:00:30.1]} 58. Kh2 {[%clk
0:00:21.2]} 58... Qf4+ {[%clk 0:00:24]} 59. Kh3 {[%clk 0:00:19.4]} 59... Qc1
{[%clk 0:00:16.8]} 60. Qd3+ {[%clk 0:00:17.1]} 60... Kh8 {[%clk 0:00:14.3]} 61.
Qd5 {[%clk 0:00:15.9]} 61... Qc3+ {[%clk 0:00:11.2]} 62. Kh4 {[%clk 0:00:13.9]}
62... Qf6+ {[%clk 0:00:08.7]} 63. Kh3 {[%clk 0:00:13.3]} 63... Qg6 {[%clk
0:00:03.8]} 64. Qa8+ {[%clk 0:00:12.2]} 64... Kh7 {[%clk 0:00:03.2]} 65. Qxa3
{[%clk 0:00:12.1]} 65... h5 {[%clk 0:00:01.8]} 66. Qg3 {[%clk 0:00:12]} 66...
Qxg4+ {[%clk 0:00:00.8]} 67. Kh2 {[%clk 0:00:09.6]} 67... b5 {[%clk 0:00:00.2]}
68. Kh1 {[%clk 0:00:09.5]} 1-0

[Event "Live Chess"]
[Site "Chess.com"]
[Date "2024.06.02"]
[Round "-"]
[White "ACM42"]
[Black "Anareza_Firouzja"]
[Result "1-0"]
[WhiteElo "2208"]
[BlackElo "1882"]
[TimeControl "300"]
[EndTime "6:30:31 PDT"]
[Termination "ACM42 won by resignation"]

1. e4 {[%clk 0:04:58.5]} 1... c5 {[%clk 0:04:58.3]} 2. Nf3 {[%clk 0:04:57.4]}
2... d6 {[%clk 0:04:57.5]} 3. d4 {[%clk 0:04:56.7]} 3... cxd4 {[%clk 0:04:57.4]}
4. Nxd4 {[%clk 0:04:56.4]} 4... Nf6 {[%clk 0:04:56.8]} 5. Nc3 {[%clk 0:04:55.8]}
5... g6 {[%clk 0:04:56.3]} 6. f4 {[%clk 0:04:54.8]} 6... Nc6 {[%clk 0:04:53.1]}
7. Be3 {[%clk 0:04:53.5]} 7... e5 {[%clk 0:04:50.3]} 8. Nxc6 {[%clk 0:04:51.1]}
8... bxc6 {[%clk 0:04:48.2]} 9. Be2 {[%clk 0:04:44.2]} 9... Bg7 {[%clk
0:04:39.8]} 10. fxe5 {[%clk 0:04:41.7]} 10... dxe5 {[%clk 0:04:39.7]} 11. Qxd8+
{[%clk 0:04:38.1]} 11... Kxd8 {[%clk 0:04:39.6]} 12. O-O {[%clk 0:04:37.2]}
12... Kc7 {[%clk 0:04:33.3]} 13. Bg5 {[%clk 0:04:35.1]} 1-0